bitfinex/quotes_ETHUSD_20240926
["timestamp","ask_amount","ask_price","bid_price","bid_amount"]
[1727341196855,0.79225324,2624.5,2624.4,3.82224752]
[1727341197232,0.51991618,2624.5,2624.4,7.67388607]
[1727341197528,0.25995809,2624.5,2624.4,10.5976921]
[1727341197729,0.25995809,2624.5,2624.4,11.1476921]
[1727341198045,6.98787386,2625.8,2624.5,3.55]
[1727341198217,3.94115386,2625.8,2625.2,6.85884572]
[1727341198422,6.98790386,2625.8,2625.2,6.9350109]
[1727341198618,1.19058845,2625.6,2625.2,6.97441779]
[1727341200556,3.04712,2625.5,2625.2,0.03940689]
[1727341200857,3.0852299,2625.3,2625.2,0.03940689]
[1727341201053,0.0379599,2625.3,2625.2,0.03940689]
[1727341201354,3.0852299,2625.3,2625.2,0.03940689]
[1727341203358,0.0379599,2625.3,2625.2,0.03940689]
[1727341203520,3.0852299,2625.3,2625.2,0.03940689]
[1727341204462,3.0852299,2625.3,2624.8,3.47156014]
[1727341204630,0.0379599,2625.3,2625.2,3.81146572]
[1727341205765,3.0852299,2625.3,2625.2,3.81146572]
[1727341205924,0.0379599,2625.3,2625.0,3.81146572]
[1727341206289,0.0379599,2625.3,2625.0,3.88764039]
[1727341206765,0.0379599,2625.3,2625.2,3.81146572]
[1727341206920,0.0379599,2625.3,2625.2,4.88590694]
[1727341207127,0.0379599,2625.3,2625.2,7.93328694]
[1727341207425,0.0379599,2625.3,2625.2,4.80974076]
[1727341207636,0.0379599,2625.3,2625.2,4.8859051]
[1727341208361,0.0379599,2625.3,2625.2,7.9332851]
[1727341208660,0.0379599,2625.3,2625.2,7.85712076]
[1727341208859,0.0379599,2625.3,2625.2,4.80974076]
[1727341209063,0.0379599,2625.3,2625.2,3.81146572]
[1727341209558,0.8264,2625.9,2625.2,3.81146572]
[1727341209559,0.4168599,2625.8,2625.2,3.81146572]
[1727341209866,3.04698,2625.6,2625.2,3.81146572]
[1727341210088,1.58857286,2625.3,2625.2,3.81146572]
[1727341210290,1.58857286,2625.3,2625.2,7.55232683]
[1727341210468,1.58857286,2625.3,2625.2,4.50497683]
[1727341213354,1.58857286,2625.3,2625.2,7.55235683]
[1727341215199,0.79285943,2625.4,2625.2,7.55235683]
[1727341216056,0.79285943,2625.4,2625.2,4.50497683]
[1727341216257,0.79285943,2625.4,2625.3,0.45811481]
[1727341216792,0.79285943,2625.5,2625.3,0.45811481]
[1727341217493,0.79285943,2625.5,2625.4,0.05255398]
[1727341217878,0.79285943,2625.5,2625.3,0.45811481]
[1727341218081,1.18928915,2625.6,2625.3,0.45811481]
[1727341218082,0.79277936,2625.4,2625.3,0.45811481]
[1727341218403,0.79277936,2625.4,2625.2,4.50497683]
[1727341218705,0.7843,2625.3,2624.7,3.04789]
[1727341218905,0.79265168,2625.1,2624.5,6.85958572]
[1727341219113,3.04791,2624.8,2624.3,3.81146572]
[1727341219281,3.04791,2624.8,2624.1,6.09716]
[1727341219282,3.04809,2624.6,2624.1,7.16498072]
[1727341219468,0.79265168,2624.6,2624.2,3.76503807]
[1727341219679,0.79265168,2624.6,2624.2,0.71649807]
[1727341219876,4.65285168,2624.5,2624.2,0.71649807]
[1727341220209,1.60465168,2624.5,2624.2,0.71649807]
[1727341220794,0.812,2624.5,2624.2,0.71649807]
[1727341220973,1.60465168,2624.5,2624.2,0.71649807]
[1727341221908,0.79265168,2624.6,2624.3,3.81146572]
[1727341222108,0.79265168,2624.6,2624.4,0.0761948]
[1727341222825,0.79265168,2624.7,2624.5,3.81146572]
[1727341223307,0.79265168,2624.6,2624.4,0.0761948]
[1727341223918,0.79265168,2624.7,2624.4,0.0761948]
[1727341224296,0.79265168,2624.6,2624.4,0.0761948]
[1727341224491,0.79265168,2624.6,2624.4,1.15346334]
[1727341224683,0.79265168,2624.7,2624.4,1.15346334]
[1727341225323,1.18894696,2624.8,2624.5,6.85965572]
[1727341225324,0.79265168,2624.8,2624.5,6.85965572]
[1727341225534,0.79265168,2624.8,2624.5,6.93584559]
[1727341226024,0.79265168,2624.8,2624.5,7.93692641]
[1727341226182,0.79265168,2624.8,2624.6,3.04807]
[1727341226383,0.79265168,2624.8,2624.7,3.81146572]
[1727341226619,1.58857286,2625.1,2624.5,4.04931082]
[1727341226620,0.79265168,2624.9,2624.5,4.04931082]
[1727341226828,0.79265168,2624.9,2624.5,3.04817]
[1727341226984,0.79265168,2624.9,2624.6,6.85953572]
[1727341230059,0.79265168,2624.9,2624.6,3.81146572]
[1727341230269,0.79265168,2624.8,2624.4,3.81146572]
[1727341230437,0.79265168,2624.7,2624.4,3.81146572]
[1727341231063,0.79265168,2624.7,2624.4,6.85977572]
[1727341231226,0.79265168,2624.8,2624.4,7.85059229]
[1727341231771,0.79265168,2624.7,2624.4,7.85059229]
[1727341231926,0.79265168,2624.8,2624.4,7.85059229]
[1727341232129,0.79265168,2624.8,2624.5,1.08759279]
[1727341233072,0.79265168,2624.8,2624.4,3.81146572]
[1727341233249,0.79265168,2624.7,2624.4,3.81146572]
[1727341233446,0.79265168,2624.6,2624.4,6.85970572]
[1727341233842,0.79265168,2624.7,2624.4,6.85970572]
[1727341234035,0.79265168,2624.6,2624.4,7.85051129]
[1727341235052,0.79265168,2624.6,2624.4,4.80227129]
[1727341235370,0.79265168,2624.6,2624.4,7.85055129]
[1727341236942,0.79265168,2624.6,2624.4,4.80227129]
[1727341237482,0.79265168,2624.6,2624.4,7.85053129]
[1727341237843,0.79265168,2624.6,2624.4,4.80227129]
[1727341240869,0.79265168,2624.6,2624.4,7.85057129]
[1727341242959,0.79265168,2624.6,2624.5,0.78505713]
[1727341245382,0.12385182,2624.6,2624.5,0.86124982]
[1727341245592,2.37774837,2625.2,2624.5,0.86124982]
[1727341245593,1.18894696,2625.3,2625.1,3.0475]
[1727341245745,1.18894696,2625.3,2625.2,4.11621572]
[1727341245957,1.18894696,2625.4,2625.2,4.1923905]
[1727341246589,1.18894696,2625.4,2625.2,0.38092478]
[1727341246889,1.18894696,2625.4,2625.0,6.93523841]
[1727341247247,1.18894696,2625.3,2625.0,6.93523841]
[1727341247453,1.18894696,2625.3,2625.1,0.99828884]
[1727341247688,1.18894696,2625.3,2625.1,1.07446179]
[1727341248011,1.58857286,2625.5,2625.1,1.07446179]
[1727341248012,1.18894696,2625.4,2625.2,3.81146572]
[1727341252303,1.18894696,2625.3,2625.2,3.81146572]
[1727341252814,1.18894696,2625.4,2625.2,3.81146572]
[1727341255511,0.79267294,2625.3,2625.2,3.81146572]
[1727341255798,0.79267294,2625.3,2625.2,4.50497662]
[1727341257391,1.18894696,2625.4,2625.2,4.50497662]
[1727341257627,1.18894696,2625.4,2625.2,3.81146572]
[1727341258719,1.18894696,2625.3,2625.2,3.81146572]
[1727341259400,1.18894696,2625.4,2625.2,3.81146572]
[1727341259602,1.18894696,2625.3,2625.2,3.81146572]
[1727341260890,1.18894696,2625.3,2624.5,6.04815]
[1727341260891,2.56429697,2625.3,2624.1,0.84835931]
[1727341261106,3.8572,2624.5,2624.0,3.81146572]
[1727341261337,3.04835,2624.4,2624.0,3.81146572]
[1727341261628,1.60170867,2624.5,2624.0,6.86021572]
[1727341261629,0.79270867,2624.3,2624.0,6.86021572]
[1727341261785,0.79270867,2624.2,2624.0,6.86021572]
[1727341261986,0.79270867,2624.2,2624.0,7.85111529]
[1727341262216,0.79270867,2624.3,2624.0,7.85111529]
[1727341262419,0.79270867,2624.3,2624.2,6.86000572]
[1727341262720,0.79270867,2624.4,2624.3,3.04843]
[1727341265185,1.18906301,2624.4,2624.0,4.03957957]
[1727341265427,0.79265333,2624.2,2624.0,3.04868]
[1727341266395,0.79265333,2624.2,2623.9,3.0488]
[1727341266396,0.79265333,2624.2,2624.1,3.04866]
[1727341266596,0.79265333,2624.2,2624.1,3.658406]
[1727341267200,0.79265333,2624.2,2624.0,3.81146572]
[1727341267537,0.79265333,2624.2,2623.9,6.09763]
[1727341267713,0.79265333,2624.2,2624.0,3.04877]
[1727341267894,0.79265333,2624.2,2623.9,6.09762]
[1727341268090,0.79265333,2624.2,2624.0,0.99090857]
[1727341269113,0.79265333,2624.2,2624.0,4.80237429]
[1727341269698,1.56675333,2624.3,2624.0,4.80237429]
[1727341270015,0.79265333,2624.2,2624.0,7.85114429]
[1727341270420,0.79265333,2624.2,2624.0,4.80237429]
[1727341270609,0.79265333,2624.2,2624.0,7.85114429]
[1727341271011,0.7741,2624.3,2624.0,7.85114429]
[1727341271012,1.56675333,2624.3,2624.0,7.85114429]
[1727341272337,1.56675333,2624.3,2624.1,3.04859]
[1727341272800,0.79265333,2624.3,2624.2,3.04854]
[1727341273002,0.79265333,2624.4,2624.2,6.86000572]
[1727341273201,0.79265333,2624.4,2624.2,6.93620683]
[1727341273415,0.79265333,2624.4,2624.2,6.86000572]
[1727341274623,0.79265333,2624.5,2624.3,3.04843]
[1727341274827,0.79265333,2624.6,2624.4,3.81146572]
[1727341275119,0.79265333,2624.5,2624.3,3.12455388]
[1727341275325,0.79265333,2624.5,2624.3,4.13586079]
[1727341275507,0.79265333,2624.6,2624.4,3.04831]
[1727341275711,0.79265333,2624.5,2624.3,4.13586079]
[1727341275935,0.79265333,2624.5,2624.4,3.0483]
[1727341276236,0.79265333,2624.5,2624.3,7.18421079]
[1727341276439,0.79265333,2624.5,2624.4,0.79473265]
[1727341276601,0.79265333,2624.5,2624.4,3.84304265]
[1727341276803,0.79265333,2624.5,2624.4,0.79473265]
[1727341277644,1.55905333,2624.5,2624.2,6.85997572]
[1727341277857,0.79265333,2624.4,2624.2,6.85997572]
[1727341278519,1.55905333,2624.5,2624.2,6.85997572]
[1727341279516,0.79265333,2624.4,2624.2,6.85997572]
[1727341279946,0.79265333,2624.4,2624.3,3.04843]
[1727341280130,0.79265333,2624.4,2624.2,4.80232329]
[1727341280330,0.79265333,2624.4,2624.2,7.85083329]
[1727341280918,0.79265333,2624.4,2624.3,3.04843]
[1727341281152,0.79265333,2624.4,2624.2,4.80232329]
[1727341281354,0.79265333,2624.4,2624.1,3.04857]
[1727341282255,0.79265333,2624.4,2624.2,3.04852]
[1727341283513,0.79265333,2624.4,2624.2,3.04845]
[1727341283748,0.79265333,2624.4,2624.2,6.85991572]
[1727341284054,0.79265333,2624.4,2624.3,3.04843]
[1727341285155,0.79265333,2624.4,2624.3,3.12463027]
[1727341285389,0.79265333,2624.5,2624.3,3.04843]
[1727341286201,0.79265333,2624.6,2624.5,3.04819]
[1727341286348,1.18906301,2624.7,2624.6,3.04808]
[1727341286349,0.79265333,2624.7,2624.6,3.04808]
[1727341286548,0.79265333,2624.7,2624.6,3.1242707]
[1727341286867,0.79265333,2625.0,2624.7,3.04796]
[1727341287044,0.79265333,2625.0,2624.9,3.04773]
[1727341287302,0.79265333,2625.1,2624.9,6.85919572]
[1727341287585,0.79265333,2625.2,2625.0,3.04761]
[1727341287770,0.79265333,2625.3,2625.1,6.93514166]
[1727341288093,0.79265333,2625.3,2625.2,3.04738]
[1727341291512,0.79265333,2625.3,2625.2,3.12355133]
[1727341291715,0.79265333,2625.4,2625.2,3.12355133]
[1727341292390,0.79265333,2625.4,2625.2,4.12180204]
[1727341292997,0.79265333,2625.4,2625.2,1.07442204]
[1727341293325,0.79265333,2625.4,2625.3,3.04727]
[1727341293988,0.79265333,2625.4,2625.2,1.07442204]
[1727341294421,0.79265333,2625.4,2625.2,0.07617133]
[1727341294923,0.79265333,2625.4,2625.2,3.12347133]
[1727341295626,0.79265333,2625.4,2625.3,3.81146572]
[1727341295790,1.18906301,2625.5,2625.3,3.81146572]
[1727341295791,0.79265333,2625.5,2625.3,6.85873572]
[1727341295992,0.79265333,2625.5,2625.3,6.93490412]
[1727341296537,0.79265333,2625.5,2625.3,3.88763412]
[1727341297717,0.79265333,2625.5,2625.3,6.93488412]
[1727341298818,0.79265333,2625.5,2625.3,3.88763412]
[1727341302111,0.79265333,2625.5,2625.3,0.0761684]
[1727341302558,0.79265333,2625.5,2625.3,3.1234084]
[1727341303759,0.79265333,2625.6,2625.3,3.1234084]
[1727341304482,0.79265333,2625.6,2625.4,1.7584796]
[1727341305883,0.79265333,2625.5,2625.4,1.7584796]
[1727341306444,0.79265333,2625.6,2625.4,1.7584796]
[1727341315255,0.79265333,2625.6,2625.5,0.07616715]
[1727341316092,0.79265333,2625.6,2625.4,1.83464638]
[1727341316404,0.79265333,2625.6,2625.4,1.7584796]
[1727341318398,0.79265333,2625.5,2625.4,1.7584796]
[1727341319382,0.79279516,2625.5,2625.4,1.7584796]
[1727341319592,1.18906301,2625.6,2625.4,1.7584796]
[1727341319785,0.79279535,2625.5,2625.4,1.7584796]
[1727341320294,1.18906301,2625.6,2625.4,1.7584796]
[1727341320507,1.18906301,2625.6,2624.9,0.38640518]
[1727341320508,0.79290341,2625.5,2624.9,0.38640518]
[1727341320804,0.79290341,2625.4,2625.1,3.04741]
[1727341321106,0.79290341,2625.3,2625.1,3.04741]
[1727341321291,0.79290341,2625.3,2625.1,6.09484]
[1727341321486,0.79290341,2625.3,2625.1,3.94964653]
[1727341321857,0.79290341,2625.3,2625.1,5.70812613]
[1727341322281,1.18906301,2625.3,2624.5,7.44]
[1727341322477,0.79297066,2624.8,2624.5,3.04819]
[1727341322663,0.79297066,2624.7,2624.5,3.04819]
[1727341322874,0.79297066,2624.7,2624.5,3.83369596]
[1727341323073,0.79297066,2624.6,2624.5,3.83369596]
[1727341323311,0.79297066,2624.6,2624.5,0.78550596]
[1727341323906,0.79297066,2624.6,2624.3,3.04839]
[1727341324219,0.79286593,2624.5,2624.3,3.04839]
[1727341324515,1.59116593,2624.5,2624.4,1.7584796]
[1727341326314,0.79286593,2624.6,2624.4,1.83467739]
[1727341326544,0.79286593,2624.6,2624.5,1.7584796]
[1727341326816,0.79286593,2624.6,2624.5,4.8066696]
[1727341326976,0.79286593,2624.6,2624.5,4.88286066]
[1727341327178,0.79286593,2624.8,2624.7,3.04796]
[1727341327489,0.79286593,2624.8,2624.7,5.67571006]
[1727341327685,0.79286593,2624.8,2624.7,4.88262799]
[1727341327894,0.79157388,2624.8,2624.7,4.88262799]
[1727341328095,1.18906301,2625.0,2624.7,4.88262799]
[1727341328402,1.18906301,2625.0,2624.9,1.7584796]
[1727341329050,1.18906301,2625.0,2624.9,4.88239515]
[1727341329310,1.18906301,2625.0,2624.9,5.37065795]
[1727341329675,1.18906301,2625.1,2624.9,5.37065795]
[1727341329874,1.18906301,2625.1,2625.0,1.7584796]
[1727341331618,1.58541735,2625.2,2625.0,1.7584796]
[1727341331816,1.19022903,2625.1,2625.0,1.7584796]
[1727341332148,1.19022574,2625.1,2625.0,1.7584796]
[1727341332321,0.8305,2625.0,2624.8,1.7584796]
[1727341332508,2.02086913,2625.0,2624.8,2.54392456]
[1727341332909,2.41591735,2625.0,2624.6,7.8545096]
[1727341333154,1.19018149,2624.8,2624.6,4.8064896]
[1727341333310,1.19018149,2624.8,2624.7,1.7584796]
[1727341336123,4.99978149,2624.8,2624.7,1.7584796]
[1727341337938,4.99978149,2624.8,2624.4,6.58478274]
[1727341338253,0.79280085,2624.7,2624.6,1.7584796]
[1727341338407,0.79280085,2624.7,2624.6,4.8065596]
[1727341339839,0.79280085,2624.7,2624.6,1.7584796]
[1727341342232,4.99978149,2624.8,2624.6,1.7584796]
[1727341342432,1.19018149,2624.7,2624.6,1.7584796]
[1727341344674,4.99978149,2624.8,2624.6,1.7584796]
[1727341344884,4.99978149,2624.8,2624.6,4.8065596]
[1727341345402,4.99978149,2624.8,2624.6,1.7584796]
[1727341346470,1.19018149,2624.7,2624.6,1.7584796]
[1727341347334,4.99978149,2624.8,2624.6,1.7584796]
[1727341349670,0.79253391,2624.7,2624.6,1.7584796]
[1727341350373,4.99978149,2624.8,2624.6,1.7584796]
[1727341351386,1.19018149,2624.7,2624.6,1.7584796]
[1727341351580,1.95368149,2624.7,2624.4,1.7584796]
[1727341351878,0.79250295,2624.5,2624.4,1.7584796]
[1727341353633,1.19018149,2624.6,2624.4,1.7584796]
[1727341353836,0.79237897,2624.5,2624.4,1.7584796]
[1727341356640,1.19018149,2624.6,2624.4,1.7584796]
[1727341357644,0.7925008,2624.5,2624.4,1.7584796]
[1727341358382,1.19018149,2624.5,2624.4,1.7584796]
[1727341359238,1.19018149,2624.6,2624.4,1.7584796]
[1727341359539,1.19018149,2624.5,2624.4,1.7584796]
[1727341364379,1.58541735,2624.6,2624.4,1.7584796]
[1727341364781,1.19030351,2624.5,2624.4,1.7584796]
[1727341365286,1.58541735,2624.6,2624.4,1.7584796]
[1727341365440,1.58541735,2624.5,2624.4,1.7584796]
[1727341365640,1.58541735,2624.6,2624.4,2.24678222]
[1727341365874,1.19063256,2624.6,2624.4,4.88297429]
[1727341366082,1.19063256,2624.6,2624.5,3.04819]
[1727341367445,1.58541735,2624.7,2624.5,3.04819]
[1727341367675,1.58541735,2624.7,2624.6,1.7584796]
[1727341370474,1.98494115,2624.7,2624.6,1.7584796]
[1727341371070,1.98494115,2624.7,2624.4,4.8067796]
[1727341371386,1.58841005,2624.5,2624.4,4.8067796]
[1727341371549,1.19135928,2624.5,2624.4,5.59230456]
[1727341373092,1.19135928,2624.5,2624.4,5.66850115]
[1727341373295,1.58841005,2624.7,2624.5,3.04819]
[1727341373503,1.19141656,2624.6,2624.5,3.99605068]
[1727341373659,1.19141656,2624.6,2624.5,5.67833871]
[1727341373859,1.58841005,2624.7,2624.5,5.67833871]
[1727341374061,1.58841005,2624.7,2624.5,5.75453025]
[1727341374259,1.58841005,2624.7,2624.6,0.88028303]
[1727341375184,5.79522296,2624.8,2624.6,0.88028303]
[1727341375396,5.79522296,2624.8,2624.5,4.88286114]
[1727341375593,1.58877366,2624.6,2624.5,4.88286114]
[1727341375763,1.58877366,2624.6,2624.5,4.8066696]
[1727341379689,1.98657657,2624.7,2624.5,4.8066696]
[1727341380028,1.98657657,2624.7,2624.5,4.88286159]
[1727341380319,1.58958965,2624.6,2624.5,4.88286159]
[1727341380540,1.98657657,2624.7,2624.5,4.8066696]
[1727341380679,1.98657657,2624.7,2624.5,4.88286151]
[1727341381127,1.58961277,2624.6,2624.5,4.88286151]
[1727341381294,1.98657657,2624.7,2624.5,4.8066696]
[1727341381489,1.98657657,2624.7,2624.5,4.88286157]
[1727341381685,1.58948786,2624.6,2624.5,4.88286157]
[1727341381927,1.98657657,2624.7,2624.5,5.59978576]
[1727341382126,1.98657657,2624.7,2624.5,5.67597766]
[1727341382334,1.58948049,2624.6,2624.5,5.67597766]
[1727341382629,1.58949879,2624.6,2624.5,5.59978576]
[1727341382999,1.98657657,2624.7,2624.5,5.59978576]
[1727341383205,1.98657657,2624.7,2624.5,4.8066696]
[1727341383825,1.98657657,2624.6,2624.5,4.8066696]
[1727341386119,1.98702032,2624.6,2624.5,4.8066696]
[1727341387850,1.98721971,2624.6,2624.5,4.8066696]
[1727341389325,1.98721971,2624.6,2624.5,1.7584796]
[1727341389729,1.98720895,2624.6,2624.5,1.7584796]
[1727341390040,1.98720895,2624.6,2624.3,1.7584796]
[1727341390041,3.04808,2624.6,2624.3,1.7584796]
[1727341390239,1.98712363,2624.4,2624.3,1.7584796]
[1727341393955,1.98712363,2624.5,2624.3,4.8069096]
[1727341394283,1.98712363,2624.5,2624.3,1.7584796]
[1727341395351,1.98712363,2624.4,2624.3,1.7584796]
[1727341395941,5.19773728,2624.7,2624.3,1.7584796]
[1727341396259,1.9870531,2624.4,2624.3,1.7584796]
[1727341396844,0.8216,2624.3,2624.2,1.7584796]
[1727341397408,2.8086531,2624.3,2624.2,1.7584796]
[1727341400774,0.8216,2624.3,2624.2,1.7584796]
[1727341400937,2.80850206,2624.3,2624.2,1.7584796]
[1727341403070,2.80850206,2624.3,2624.0,4.8071996]
[1727341403273,1.58928188,2624.2,2624.1,0.42529653]
[1727341404189,1.58928188,2624.2,2624.0,4.8071996]
[1727341404476,1.19178785,2624.1,2624.0,5.59281156]
[1727341404681,1.19178785,2624.1,2624.0,6.0180503]
[1727341405977,1.19178785,2624.1,2624.0,5.59281156]
[1727341406283,1.19178785,2624.1,2624.0,6.01802233]
[1727341409189,1.19178785,2624.1,2624.0,5.59281156]
[1727341411242,1.19178785,2624.2,2624.0,5.66901796]
[1727341411441,1.19142143,2624.2,2624.1,1.7584796]
[1727341411641,1.19154731,2624.2,2624.1,1.7584796]
[1727341412179,2.41088188,2624.3,2624.1,1.7584796]
[1727341412369,1.19181732,2624.2,2624.1,1.7584796]
[1727341412570,1.19184346,2624.2,2624.1,1.7584796]
[1727341412742,2.41088188,2624.3,2624.1,1.7584796]
[1727341413090,1.19176628,2624.2,2624.1,1.7584796]
[1727341413294,2.41088188,2624.3,2624.1,1.7584796]
[1727341413651,1.58928188,2624.2,2624.1,1.7584796]
[1727341417854,2.41088188,2624.3,2624.1,1.7584796]
[1727341418293,1.58928188,2624.2,2624.1,1.7584796]
[1727341418768,2.41088188,2624.3,2624.1,1.7584796]
[1727341418966,1.19178903,2624.2,2624.1,1.7584796]
[1727341419168,1.58928188,2624.2,2624.1,1.7584796]
[1727341419508,0.79473813,2624.5,2624.4,3.04831]
[1727341419662,4.60433813,2624.8,2624.6,3.04808]
[1727341419863,3.8096,2624.8,2624.7,5.4112476]
[1727341420163,4.60433813,2624.8,2624.7,5.4112476]
[1727341420391,4.60433813,2624.8,2624.4,3.04826]
[1727341420392,5.00158811,2624.8,2624.4,3.04826]
[1727341420571,0.8131,2624.5,2623.8,3.0]
[1727341420782,0.8131,2624.5,2623.6,7.44]
[1727341420783,0.79460557,2624.2,2624.1,1.7584796]
[1727341421083,0.79460557,2624.2,2624.1,5.29548197]
[1727341423198,1.19190836,2624.4,2624.2,3.04854]
[1727341423199,0.79460557,2624.3,2624.2,3.04854]
[1727341423498,1.19190836,2624.3,2624.2,4.8070196]
[1727341424604,1.19190836,2624.3,2624.2,5.6414328]
[1727341424896,0.79486673,2624.3,2624.2,5.71763208]
[1727341425067,0.79486673,2624.3,2624.2,5.6414328]
[1727341425864,0.79486673,2624.3,2624.2,5.71763332]
[1727341426063,0.79486673,2624.3,2624.2,5.6414328]
[1727341426892,1.19190836,2624.4,2624.2,5.6414328]
[1727341427097,0.79509678,2624.3,2624.2,4.8070196]
[1727341427688,1.19190836,2624.4,2624.2,4.8070196]
[1727341428097,1.19190836,2624.3,2624.2,4.8070196]
[1727341428712,1.19190836,2624.4,2624.2,4.8070196]
[1727341428915,1.58921114,2624.5,2624.3,1.7584796]
[1727341431371,1.58921114,2624.4,2624.3,1.7584796]
[1727341431577,0.7728,2624.4,2624.3,1.7584796]
[1727341431842,2.76052164,2624.4,2624.3,1.7584796]
[1727341433904,2.76052164,2624.4,2624.1,4.8071296]
[1727341434119,1.59037585,2624.3,2624.1,4.8071296]
[1727341434281,1.59037585,2624.2,2624.1,4.8071296]
[1727341434473,1.19282564,2624.2,2624.1,4.8071296]
[1727341434673,1.1928199,2624.2,2624.1,1.7584796]
[1727341434896,1.59037585,2624.2,2624.1,1.7584796]
[1727341436102,1.59037585,2624.3,2624.1,1.7584796]
[1727341436641,1.59037585,2624.2,2624.1,1.7584796]
[1727341441954,1.59037585,2624.2,2624.1,2.23919756]
[1727341441955,1.19321944,2624.2,2624.1,2.23919756]
[1727341442102,1.59037585,2624.3,2624.2,3.04854]
[1727341442103,0.79552545,2624.3,2624.2,3.04854]
[1727341442297,0.79560336,2624.5,2624.4,3.04831]
[1727341442737,0.79560336,2624.7,2624.6,3.04808]
[1727341442985,4.60525442,2624.8,2624.7,3.04796]
[1727341443105,3.8096,2624.8,2624.7,6.68023872]
[1727341449264,3.8096,2624.8,2624.7,1.7584796]
[1727341449467,3.8096,2624.8,2624.7,4.8064396]
[1727341450332,3.8096,2624.8,2624.7,1.7584796]
[1727341452456,3.8096,2624.8,2624.7,4.8064396]
[1727341454850,3.8096,2624.8,2624.7,1.7584796]
[1727341455046,4.6154,2624.8,2624.7,1.7584796]
[1727341455247,5.87157986,2624.8,2624.6,1.7584796]
[1727341455449,0.79565442,2624.7,2624.6,1.7584796]
[1727341455766,0.79565442,2624.7,2624.2,3.04847]
[1727341455767,0.7627,2624.6,2624.2,1.7584796]
[1727341456078,0.79323286,2624.5,2624.2,1.7584796]
[1727341456277,0.79323286,2624.4,2624.2,1.7584796]
[1727341456423,0.7738,2624.3,2624.0,1.7584796]
[1727341456772,1.56703286,2624.3,2624.2,1.7584796]
[1727341458864,1.56703286,2624.3,2624.0,3.04877]
[1727341459029,1.56703286,2624.3,2624.2,1.7584796]
[1727341463943,0.7738,2624.3,2624.2,1.7584796]
[1727341464143,1.56703286,2624.3,2624.2,1.7584796]
[1727341465489,1.98430796,2624.3,2624.2,1.7584796]
[1727341465847,1.56703286,2624.3,2624.2,1.7584796]
[1727341466783,0.7738,2624.3,2624.2,1.7584796]
[1727341466969,1.56703286,2624.3,2624.2,1.7584796]
[1727341474074,0.7738,2624.3,2624.2,1.7584796]
[1727341474786,1.56745489,2624.3,2624.2,1.7584796]
[1727341476075,1.33456285,2624.3,2623.8,3.04894]
[1727341476271,0.79365489,2624.0,2623.7,1.7584796]
[1727341476475,0.7996,2623.9,2623.5,4.8078296]
[1727341476686,1.59325489,2623.9,2623.5,1.7584796]
[1727341476933,3.85644,2623.7,2623.1,3.04976]
[1727341477180,0.79365489,2623.5,2623.3,1.7584796]
[1727341477796,0.79365489,2623.6,2623.3,1.7584796]
[1727341478115,0.79365489,2623.5,2623.3,1.7584796]
[1727341478617,5.04628929,2623.7,2623.3,1.7584796]
[1727341478618,0.79365489,2623.6,2623.3,1.7584796]
[1727341479080,0.79365489,2623.5,2623.3,1.7584796]
[1727341479280,0.79365489,2623.6,2623.3,1.7584796]
[1727341481013,0.79365489,2623.6,2623.5,1.7584796]
[1727341481227,4.65009489,2623.7,2623.5,1.7584796]
[1727341481393,5.73384617,2623.7,2623.5,1.7584796]
[1727341483625,2.68470617,2623.7,2623.5,1.7584796]
[1727341483798,0.8073,2623.7,2623.5,1.7584796]
[1727341484387,4.65009489,2623.7,2623.5,1.7584796]
[1727341484621,3.85644,2623.7,2623.5,1.7584796]
[1727341484821,3.04938,2623.5,2623.0,3.04986]
[1727341485023,0.7514,2623.4,2623.2,1.7584796]
[1727341488035,0.7514,2623.4,2623.2,4.8081696]
[1727341488247,0.7514,2623.4,2623.1,3.0498]
[1727341488540,0.7514,2623.4,2622.9,0.0379599]
[1727341488541,0.7514,2623.4,2623.2,1.7584796]
[1727341488702,0.7514,2623.4,2623.2,4.8080996]
[1727341489743,0.7606,2623.6,2623.2,4.8080996]
[1727341489918,0.7606,2623.6,2623.4,1.7584796]
[1727341491038,3.80986,2623.6,2623.4,1.7584796]
[1727341491243,3.73526,2623.5,2623.2,1.7584796]
[1727341493428,3.04936,2623.5,2623.2,1.7584796]
[1727341494045,1.64955425,2623.6,2623.0,3.04985]
[1727341494228,4.69882425,2623.6,2623.2,1.7584796]
[1727341494445,3.84303489,2623.5,2622.9,0.0379599]
[1727341494608,0.7656,2623.4,2623.0,1.7584796]
[1727341495435,0.7656,2623.4,2622.9,0.0379599]
[1727341495618,0.7656,2623.4,2623.1,1.7584796]
[1727341497158,0.7656,2623.4,2623.1,4.8082996]
[1727341497343,0.7656,2623.4,2623.3,1.7584796]
[1727341499258,0.7656,2623.4,2623.1,1.7584796]
[1727341499493,3.91037501,2623.4,2623.1,1.7584796]
[1727341499662,4.60872489,2623.4,2623.1,1.7584796]
[1727341500321,1.55925489,2623.4,2623.1,1.7584796]
[1727341500846,3.04982,2623.1,2622.9,0.0379599]
[1727341501027,0.85832455,2623.0,2622.9,0.0379599]
[1727341501228,5.09811384,2623.0,2622.9,0.0379599]
[1727341502157,0.763,2623.0,2622.9,0.0379599]
[1727341502816,1.35199222,2623.0,2622.9,0.0379599]
[1727341503018,2.54184151,2623.0,2622.9,0.0379599]
[1727341503447,1.35199222,2623.0,2622.9,0.0379599]
[1727341503663,4.40193222,2623.0,2622.9,0.0379599]
[1727341503862,4.4972608,2623.0,2622.9,0.0379599]
[1727341504070,5.68711009,2623.0,2622.9,0.0379599]
[1727341504486,4.4972608,2623.0,2622.9,0.0379599]
[1727341504662,5.68711009,2623.0,2622.9,0.0379599]
[1727341505376,5.28847329,2623.0,2622.9,0.0379599]
[1727341505564,2.23853329,2623.0,2622.9,0.0379599]
[1727341505790,1.4473208,2623.0,2622.9,0.0379599]
[1727341505967,5.28847329,2623.0,2622.9,0.0379599]
[1727341506737,2.23853329,2623.0,2622.9,0.0379599]
[1727341507483,5.83847329,2623.0,2622.9,0.0379599]
[1727341509659,2.14320471,2623.0,2622.9,0.0379599]
[1727341509861,0.763,2623.0,2622.9,0.0379599]
[1727341513383,4.60415249,2623.0,2622.9,0.0379599]
[1727341513583,3.81294,2623.0,2622.9,0.0379599]
[1727341513789,5.00278929,2623.0,2622.9,0.0379599]
[1727341514622,5.09811654,2623.0,2622.9,0.0379599]
[1727341514793,5.63002516,2623.0,2622.9,0.0379599]
[1727341514994,7.22040101,2623.0,2622.9,0.0379599]
[1727341515328,5.63002516,2623.0,2622.9,0.0379599]
[1727341515495,7.22040101,2623.0,2622.9,0.0379599]
[1727341516022,5.63002516,2623.0,2622.9,0.0379599]
[1727341516185,6.817904,2623.0,2622.9,0.0379599]
[1727341516575,5.63002516,2623.0,2622.9,0.0379599]
[1727341516900,6.81810664,2623.0,2622.9,0.0379599]
[1727341517075,5.63002516,2623.0,2622.9,0.0379599]
[1727341517281,6.81810584,2623.0,2622.9,0.0379599]
[1727341517505,7.22040101,2623.0,2622.9,0.0379599]
[1727341519535,6.67040101,2623.0,2622.9,0.0379599]